Cogmind - Beta 10.1 @@@ ROGUE MODE // 2020.10.02 @ 13:48:04 Player: HOTSOUP Result: Self-destructed Performance ------------- Evolutions (0) 0 Regions Visited (4) 800 Robots Destroyed (10) 50 Value Destroyed (131) 131 Prototype IDs (3) 60 Alien Tech Used (0) 0 Bonus (300) 300 TOTAL SCORE: 1341 Bonus ------- Aligned with FarCom 300 Cogmind --------- Core Integrity 130/250 Matter 300/300 Energy 99/100 System Corruption 4% Temperature Cool (100) Movement Core (50) Location -9/Mines Parts ------- > --- POWER (1) -------- (None) > --- PROPULSION (2) --- (None) > --- UTILITY (2) ------ Supersonic Drone Bay (0/1) > --- WEAPON (2) ------- Small Laser > --- INVENTORY (4) ---- Light Ion Engine Light Ion Engine High-capacity Battery (400) Medium Matter Pod (100) Peak State ------------ > --- POWER ------------ (None) > --- PROPULSION ------- (None) > --- UTILITY ---------- Supersonic Drone Bay > --- WEAPON ----------- Hammer > --- INVENTORY -------- Light Ion Engine Light Ion Engine High-capacity Battery Medium Matter Pod [Rating: 9] Favorites ----------- Power Light Ion Engine Engine Light Ion Engine Propulsion Flight Unit Flight Unit Flight Unit Utility Sensor Array Device Sensor Array Processor 0b10 Alert Chip Weapon Hammer Energy Gun Medium Laser Impact Weapon Hammer Build | -11 -10 -10 -10 -9 ------- Run | Scr Mat Min Exi Min Slots Evolved . | . . . . . Power . | . . . . . Propulsion . | . . . . . Utility . | . . . . . Weapon . | . . . . . Parts Attached 11 | 1 4 2 3 1 Power 1 | . . 1 . . Engine 1 | . . 1 . . Core . | . . . . . Reactor . | . . . . . Propulsion 1 | . 1 . . . Treads . | . . . . . Leg . | . . . . . Wheel . | . . . . . Hover . | . . . . . Flight 1 | . 1 . . . Utility 6 | . 2 1 3 . Device 5 | . 2 1 2 . Storage . | . . . . . Processor 1 | . . . 1 . Hackware . | . . . . . Protection . | . . . . . Artifact . | . . . . . Weapon 3 | 1 1 . . 1 Energy Gun 2 | 1 . . . 1 Energy Cannon . | . . . . . Ballistic Gun . | . . . . . Ballistic Cannon . | . . . . . Launcher . | . . . . . Special Weapon . | . . . . . Impact Weapon 1 | . 1 . . . Slashing Weapon . | . . . . . Piercing Weapon . | . . . . . Special Melee Weapon . | . . . . . Unidentified Prototypes 3 | . . . 3 . Parts Lost 2 | . 1 . . 1 Power . | . . . . . Propulsion 1 | . 1 . . . Utility . | . . . . . Weapon 1 | . . . . 1 Highest Loss Streak 1 | . 1 . . 1 Average Slot Usage (%) 32 | . 27 37 35 27 Flight 1 | . 3 . . . Device 17 | . 9 23 21 14 Energy Gun 2 | . 4 . . 5 Impact Weapon 11 | . 10 14 14 7 Naked Turns . | . . . . . Heaviest Build 4 | 2 4 4 4 3 Greatest Support 4 | 3 4 3 3 3 Greatest Overweight (x) 1 | . 1 1 1 . Average Overweight (x) . | . . . . . Largest Inventory Capacity 4 | 4 4 4 4 4 Average Capacity 4 | 4 4 4 4 4 Most Carried 4 | 1 2 4 4 4 Average Carried 2 | . 1 3 4 4 Final Capacity 4 | 4 4 4 4 4 Final Carried 4 | 1 2 4 4 4 Class Distribution -------------------- 100% | Mutant Dominant Class ---------------- Mutant | -10/Materials Mutant | -10/Mines Mutant | -10/Exiles Mutant | -9/Mines Resources | -11 -10 -10 -10 -9 ----------- Run | Scr Mat Min Exi Min Matter Collected 375 | 210 35 74 . 56 Remotely . | . . . . . Salvage Created 285 | . 119 42 . 124 Parts 15 | . 4 3 . 8 Haulers Intercepted 1 | . 1 . . . Recyclers Shooed 2 | . . . . 2 Parts Field Recycled . | . . . . . Retrieved Matter . | . . . . . Parts Self-Destructed . | . . . . . Prevented . | . . . . . Kills | -11 -10 -10 -10 -9 ------- Run | Scr Mat Min Exi Min Combat Hostiles Destroyed 5 | . 3 . . 2 Melee 4 | . 3 . . 1 Guns 1 | . . . . 1 Classes Destroyed 8 | . 3 2 . 3 Worker 1 | . . 1 . . Builder 1 | . . 1 . . Tunneler 1 | . . . . 1 Hauler 1 | . 1 . . . Operator 1 | . 1 . . . Swarmer 3 | . 3 . . . Grunt 1 | . . . . 1 Brawler 1 | . . . . 1 Best Kill Streak 2 | . 2 1 . 1 Combat Bots Only 2 | . 2 . . 1 Max Kills in Single Turn 1 | . 1 1 . 1 Gunslinging . | . . . . . Exploded . | . . . . . Melee 1 | . 1 . . 1 Uniques/NPCs Destroyed . | . . . . . Combat | -11 -10 -10 -10 -9 -------- Run | Scr Mat Min Exi Min Damage Taken 238 | . 137 . . 101 Core 120 | . 66 . . 54 Absorbed by Shields . | . . . . . Core Remaining (%) 100 | 100 . . . . Volleys Fired 19 | . 1 . . 18 Largest 1 | . 1 . . 1 Hottest 50 | . 50 . . 40 Shots Fired 19 | . 1 . . 18 Gun 19 | . 1 . . 18 Cannon . | . . . . . Launcher . | . . . . . Special . | . . . . . Kinetic . | . . . . . Thermal 19 | . 1 . . 18 Explosive . | . . . . . Electromagnetic . | . . . . . Robot Hit Streak 5 | . 1 . . 5 Robot Miss Streak 3 | . . . . 3 Penetration Max . | . . . . . Secondary Targets . | . . . . . Shots Hit Robots 32 | . 15 4 . 13 Core Hits 13 | . 4 1 . 8 Critical Hits . | . . . . . Critical Kills . | . . . . . Critical Parts Destroyed . | . . . . . Melee Attacks 69 | . 26 38 . 5 Impact 69 | . 26 38 . 5 Slashing . | . . . . . Piercing . | . . . . . Sneak Attacks 3 | . 1 2 . . Combat Hostiles . | . . . . . Follow-up Attacks . | . . . . . Damage Inflicted 619 | . 314 113 . 192 Guns 144 | . 13 . . 131 Cannons . | . . . . . Explosions . | . . . . . Melee 444 | . 301 113 . 30 Ramming 31 | . . . . 31 Kinetic . | . . . . . Thermal 144 | . 13 . . 131 Explosive . | . . . . . Electromagnetic . | . . . . . Impact 444 | . 301 113 . 30 Slashing . | . . . . . Piercing . | . . . . . Highest Corruption 4 | . . . . 4 Average Corruption 4 | . . . . 4 Corruption Purged . | . . . . . Effects 2 | . . . . 2 Heat Flow Errors 1 | . . . . 1 Targeting Errors 1 | . . . . 1 Overload Shots . | . . . . . Overflow Damage 18 | . 3 15 . . Projectiles . | . . . . . Explosions . | . . . . . Melee 18 | . 3 15 . . Knockbacks 2 | . 1 1 . . Impact 2 | . 1 1 . . Kinetic . | . . . . . Secondary . | . . . . . Self-Inflicted Damage 14 | . . . . 14 Shots . | . . . . . Rammed 9 | . . . . 9 Targets Rammed 9 | . . . . 9 Kicked . | . . . . . Crushed . | . . . . . Highest Temperature 100 | . . . . 100 Average Temperature 20 | . . . . 20 Received Heat Transfer 30 | . 6 . . 24 Siege Activations . | . . . . . Robots Corrupted . | . . . . . Combat Hostiles . | . . . . . Parts Fried 9 | . 4 5 . . Impact Corruptions 4 | . 2 2 . . Robots Melted . | . . . . . Combat Hostiles . | . . . . . Parts Melted . | . . . . . Heat Transferred 337 | . 37 . . 300 Parts Sabotaged . | . . . . . Parts Stolen . | . . . . . Parts Stripped . | . . . . . Power Chain Reactions . | . . . . . Missiles Intercepted . | . . . . . Alert | -11 -10 -10 -10 -9 ------- Run | Scr Mat Min Exi Min Peak Influence 147 | . 147 67 . 55 Initial 57 | . . 57 . . Average 53 | . 67 61 . 16 Maximum Alert Level . | . . . . . Low Security (%) 100 | 100 100 100 . 100 Level 1 . | . . . . . Level 2 . | . . . . . Level 3 . | . . . . . Level 4 . | . . . . . Level 5 . | . . . . . High Security . | . . . . . Max Security . | . . . . . Squads Dispatched 3 | . 3 . . . Investigation 2 | . 2 . . . Extermination . | . . . . . Reinforcement 1 | . 1 . . . Assault . | . . . . . Garrison . | . . . . . Intercept . | . . . . . Construction Impeded . | . . . . . Haulers Reinforced . | . . . . . Stealth | -11 -10 -10 -10 -9 --------- Run | Scr Mat Min Exi Min Distress Signals 1 | . 1 . . . Communications Jammed . | . . . . . Distress Signals . | . . . . . Times Spotted 16 | . 14 . . 2 Peak Tracking Total 7 | . 7 . . 2 Tactical Retreats 2 | . 2 . . . Traps | -11 -10 -10 -10 -9 ------- Run | Scr Mat Min Exi Min Traps Triggered . | . . . . . Indirectly . | . . . . . Trap Hack Attempts . | . . . . . Triggered . | . . . . . Disarmed . | . . . . . Reprogrammed . | . . . . . Reused . | . . . . . Traps Extracted . | . . . . . Installed . | . . . . . Triggered . | . . . . . Machines | -11 -10 -10 -10 -9 ---------- Run | Scr Mat Min Exi Min Machines Disabled . | . . . . . Max in Single Turn . | . . . . . Machines Sabotaged . | . . . . . Garrisons Compromised . | . . . . . Overloaded Fab Kills . | . . . . . Fab Network Shutdowns . | . . . . . Hacking | -11 -10 -10 -10 -9 --------- Run | Scr Mat Min Exi Min Machines Accessed 7 | . 7 . . . Terminals 7 | . 7 . . . Fabricators . | . . . . . Repair Stations . | . . . . . Recycling Units . | . . . . . Scanalyzers . | . . . . . Garrison Access . | . . . . . Total Hacks 19 | . 19 . . . Successful 7 | . 7 . . . Failed 12 | . 12 . . . Catastrophic 2 | . 2 . . . Database Lockouts . | . . . . . Manual 16 | . 15 . 1 . Terminals 19 | . 19 . . . Fabricators . | . . . . . Repair Stations . | . . . . . Recycling Units . | . . . . . Scanalyzers . | . . . . . Garrison Access . | . . . . . Terminal Hacks 3 | . 3 . . . Branch Access Points 1 | . 1 . . . Terminal Index 1 | . 1 . . . Dispatch Records 1 | . 1 . . . Fabricator Hacks . | . . . . . Repair Station Hacks . | . . . . . Recycling Unit Hacks . | . . . . . Scanalyzer . | . . . . . Garrison Access Hacks . | . . . . . Unauthorized Hacks 4 | . 4 . . . Terminals 4 | . 4 . . . Botnet 3 | . 3 . . . Operators 1 | . 1 . . . Fabricators . | . . . . . Repair Stations . | . . . . . Recycling Units . | . . . . . Scanalyzers . | . . . . . Garrison Access . | . . . . . Data Cores Recovered . | . . . . . Used . | . . . . . Hacking Detections 5 | . 5 . . . Full Trace Events 3 | . 3 . . . Feedback Events . | . . . . . Feedback Blocked . | . . . . . Robot Schematics Acquired . | . . . . . Robots Built . | . . . . . Matter . | . . . . . Time . | . . . . . Total Robot Build Rating . | . . . . . Part Schematics Acquired . | . . . . . Parts Built . | . . . . . Matter . | . . . . . Time . | . . . . . Total Part Build Rating . | . . . . . Parts Repaired . | . . . . . Time . | . . . . . Parts Recycled . | . . . . . Recycled Matter . | . . . . . Retrieved Matter . | . . . . . Retrieved Components . | . . . . . Parts Scanalyzed . | . . . . . Part Schematics Acquired . | . . . . . Parts Damaged . | . . . . . Bothacking | -11 -10 -10 -10 -9 ------------ Run | Scr Mat Min Exi Min Used RIF Installer . | . . . . . Robots Hacked . | . . . . . Non-combat . | . . . . . Combat . | . . . . . Robot Hacks Applied . | . . . . . Relay Couplers Released . | . . . . . Robots Rewired . | . . . . . Allies Hacked . | . . . . . Hacks Repelled . | . . . . . Allies | -11 -10 -10 -10 -9 -------- Run | Scr Mat Min Exi Min Total Allies . | . . . . . Largest Group . | . . . . . Highest-Rated Group . | . . . . . Highest-Rated Ally . | . . . . . Total Orders 3 | . . . 2 1 EXPLORE 2 | . . . 1 1 RETURN 1 | . . . 1 . Ally Attacks . | . . . . . Total Damage . | . . . . . Kills . | . . . . . Allies Corrupted . | . . . . . Allies Melted . | . . . . . Intel | -11 -10 -10 -10 -9 ------- Run | Scr Mat Min Exi Min Robot Analysis Total . | . . . . . Derelict Logs Recovered 2 | . . 1 . 1 Drone Launches 2 | . . . 1 1 Drone Recoveries 1 | . . . 1 . Exploration | -11 -10 -10 -10 -9 ------------- Run | Scr Mat Min Exi Min Turns Passed 1048 | 17 318 309 227 177 Spaces Moved 1048 | 30 391 214 252 161 Core 989 | 30 332 214 252 161 Treads . | . . . . . Legs . | . . . . . Wheels . | . . . . . Hover . | . . . . . Flight 59 | . 59 . . . Fastest Speed 40 | 50 40 50 50 50 Average Speed 61 | 50 49 75 76 50 Slowest Speed 100 | 50 100 100 100 50 Overloaded Moves . | . . . . . Propulsion Burnouts . | . . . . . Robots Hopped . | . . . . . Cave-ins Triggered . | . . . . . Time Travels 1 | . . . 1 . Exploration Rate (%) 49 | 3 82 45 91 24 Regions Visited 4 Branch Regions 3 Pre-discovered Areas . | . . . . . Known Exits Taken 1 | . 1 . . . Unknown Exits Taken 3 | 1 . 1 1 . Scrap Searched 2 | . . 2 . . Spaces Dug 27 | . 9 17 . 1 Terrain Destroyed 27 | . 9 17 . 1 Melee 27 | . 9 17 . 1 Projectile . | . . . . . AOE . | . . . . . Terrain Rammed . | . . . . . Walls Destroyed . | . . . . . Machines Disabled . | . . . . . Actions | -11 -10 -10 -10 -9 --------- Run | Scr Mat Min Exi Min Total 1326 | 31 473 305 286 231 Wait 164 | . 49 50 28 37 Move 1044 | 29 390 213 251 161 Hop . | . . . . . Pick Up 3 | 1 1 1 . . Fast Attach 11 | 1 4 2 3 1 Attach . | . . . . . Detach 1 | . . 1 . . Swap . | . . . . . Drop 6 | . 2 . 4 . Fire 19 | . 1 . . 18 Melee 69 | . 26 38 . 5 Ram 9 | . . . . 9 Kick . | . . . . . Crush . | . . . . . Escape Stasis . | . . . . . Rewire . | . . . . . Trap . | . . . . . Miscellaneous . | . . . . . Route ------- -11/Scrapyard -10/Materials (discovered 5 exits: [*Mat x3] / *Min x2) -10/Mines -10/Exiles (discovered 2 exits: [*Min x2]) -9/Mines History --------- Turn | Location | Event 3 | -11/Scrapyard | Discovered new exit (range 16) 18 | -11/Scrapyard | Entered Materials 77 | -10/Materials | Discovered new exit (range 16) 236 | -10/Materials | Identified exit to Mines 237 | -10/Materials | Discovered new exit (range 12) 283 | -10/Materials | Discovered new exit (range 8) 318 | -10/Materials | Build established: Mutant 336 | -10/Materials | Entered Mines 404 | -10/Mines | Learned location of 2 exits from Materials 526 | -10/Mines | Deemed a non-threat by the Exiles lab entrance 527 | -10/Mines | Discovered new exit (range 5) 645 | -10/Mines | Entered Exiles 672 | -10/Exiles | Met 8R-AWN 686 | -10/Exiles | Met EX-HEX 715 | -10/Exiles | Met EX-BIN 727 | -10/Exiles | Aligned with FarCom system 728 | -10/Exiles | Given EX-Vault access code 772 | -10/Exiles | Opened EX-Vault 779 | -10/Exiles | Found Prototype Device 779 | -10/Exiles | Identified Supersonic Drone Bay 789 | -10/Exiles | Discovered new exit (range 56) 796 | -10/Exiles | Discovered new exit (range 71) 810 | -10/Exiles | Found Prototype Processor 810 | -10/Exiles | Identified 0b10 Alert Chip 815 | -10/Exiles | Found Prototype Device 815 | -10/Exiles | Identified Chronowheel 815 | -10/Exiles | Activated Chronowheel 815 | -10/Exiles | Spacetime reconverged on an earlier point 828 | -10/Exiles | Warned to stay clear of 0b10 Research branches 843 | -10/Exiles | Met EX-DEC 872 | -10/Exiles | Left Exiles lab with Supersonic Drone Bay 872 | -10/Exiles | Entered Mines 903 | -9/Mines | Learned Materials garrison access intel 1049 | -9/Mines | Self-destructed Last Messages --------------- Data stored: Materials garrison access intel. 00960_ Hammer destroyed. 00960_ System corrupted by crushing effect (+4). 00960_ Knocked back. 00960_ Slammed into G-34 Mercenary. 00963_ Supersonic Drone Bay permanently disabled. 00963_ Destabilizing: Short circuit. 00964_ Slammed into G-34 Mercenary. 00968_ G-34 Mercenary destroyed. 00969_ Acquired 46 matter. 00973_ Acquired Sml. Laser. 00974_ Acquired 4 matter. 00992_ R-06 Scavenger collects Aluminum Leg. 00996_ R-06 Scavenger collects Heat Sink. 01008_ B-36 Bruiser destroyed. 01012_ Acquired 6 matter. 01016_ System corrupted: Sml. Laser targeting data glitched. 01037_ T-07 Excavator destroyed. 01043_ K-01 Serf collects debris. 01048_ System corrupted: Heat flow error (+125). Map ----- +----------------------------------------------------+ | ?????????????????????????????????????????????? | | ?????????????????????????????????????????????? | | ?????????????????????????????????????????????? | | ?????????????????????????????????????????????? | | ?????????????????????????????????????????????? | | ?????????????????????????????????????????????? | | ?????????????????????????????????????????????? | | ?????????#?????????????????????????####??????? | | ????????## ????#??????????????????## ##?????? | | ????????# ??? ?????????????????## #?????? | | ???????## ??? ?????????????????# #?????? | | ??????## ? ?????????????????# #??????? | | ??????# ????????????????# #??????? | | ??????? """ ????????????????# #??????? | | ???????? """ ????????????????# ##??????? | | ????????? """ ????????????????# ##???????? | | ?????????? ????????????????# #????????? | | ??????????? ???????????????## #????????? | | ???????????# ??????????????## ########?? | | ???????????# ?????????????## #?? | | ???????????# ????????????## ###### #?? | | ??????????## ???????######| ##????# #?? | | ????????### ???????# !%= #?????# #?? | | ???????## ##?????# ##### ####### ##? | | ???????# ####### #???### # #? | | ?????????????# r k @#?????# # #? | | ?????????????### #########?????# " """ #? | | ???????????????# #?????????????# # """% #? | | ???????????????# #?????????????# # """ #? | | ??????#### ##### ##########????# # #? | | ????# #????# # """ #? | | ??????####### ######## #????# # """ #? | | ????????????# ####??????# #????# # """ #? | | ????????????# ??????????# ##???# # #? | | ????????????# ?????????## ###?# /% #? | | ????????????# ??????????# ###### #? | | ????????????# ?????????## ###?##########? | | ???????????? ??????????# #???????????? | | ???????????? ??????????# ## #??????????? | | ??????????? ?????????# #### #??????????? | | ??????????? ???????? ???## ##??????????? | | ?????????? ?????? ????####???????????? | | ?????????? ??????###### ???????????????????? | | ?????????# ???????????### ???????????????????? | | ?????????#??????????????# ???????????????????? | | ????????????????????????# ???????????????????? | | ???????????????????????? ???????????????????? | | ???????????????????????? ???????????????????? | | ???????????????????????? ???????????????????? | | ???????????????????????? ???????????????????? | +----------------------------------------------------+ Best States ------------- Heat Dissipation 25 Energy Generation 5 Energy Capacity 100 Matter Stores 300 Matter Capacity 300 Sight Range 16 Robot Scan Range 10 Terrain Scan Density 10 Evasion (%) 62 Item Schematics ----------------- None Robot Schematics ------------------ None Fabricated ------------ Nothing Alien Tech Used ----------------- None Achievements -------------- None Challenges ------------ None Game ------ Seed TractorSupersonicPropulsion Manual? 0 Play Time 00:15:29 Cumulative 81.6 hours Start 2020.10.02 @ 02:55:39 End 2020.10.02 @ 13:48:04 Sessions 1 Manual Loads 0 Difficulty Rogue Special Mode None Game No. 117 Rogue 93 Adventurer 22 Explorer 2 Win Type - Total 1 Types 1/0/0/0/0/0/0/0/0 Lore% 44 Gallery% 48 Achievement% 39 Wizard Run 0 Options --------- ASCII 0 Keyboard 0 Movement Numpad Keybinds 0 Fullscreen 1 Font 14/SmallcapsGlow Map View 84x54 Tactical HUD 1 Map Filters NONE Filters NONE Steam 1 RUN: bc669409-6b9d-403c-a6b1-d8ba859a09b6